bitfinex/quotes_BTCUSD_20241211
["timestamp","ask_amount","ask_price","bid_price","bid_amount"]
[1733934711937,34.21152205,101000.0,100990.0,0.49607]
[1733934711938,34.25752205,101000.0,100990.0,0.49607]
[1733934712116,34.25752205,101000.0,100990.0,0.585187]
[1733934712324,34.25752205,101000.0,100990.0,0.49607]
[1733934712719,34.25352205,101000.0,100990.0,0.49607]
[1733934712923,34.45154105,101000.0,100990.0,0.49607]
[1733934713146,34.45154105,101000.0,100990.0,0.36697]
[1733934713147,34.71602488,101000.0,100990.0,0.36697]
[1733934713353,34.72502488,101000.0,100990.0,0.23987]
[1733934713555,34.5518495,101000.0,100990.0,0.23987]
[1733934713731,34.5438495,101000.0,100990.0,0.23887]
[1733934713967,34.5488495,101000.0,100990.0,0.23887]
[1733934714284,34.56515405,101000.0,100990.0,0.23887]
[1733934714605,34.56615405,101000.0,100990.0,0.24787]
[1733934714809,34.49715404,101000.0,100990.0,0.11977]
[1733934715168,34.49615404,101000.0,100990.0,0.11977]
[1733934715364,34.81532942,101000.0,100990.0,0.11977]
[1733934715612,0.324868,100980.0,100950.0,0.198103]
[1733934715812,0.42517645,100980.0,100950.0,0.198103]
[1733934716021,0.42517645,100980.0,100960.0,0.099048]
[1733934716245,0.22710845,100980.0,100960.0,0.099044]
[1733934716800,0.22710845,100980.0,100960.0,0.198089]
[1733934717150,0.22710845,100980.0,100960.0,0.200089]
[1733934717338,0.22710845,100980.0,100960.0,0.200088]
[1733934717538,0.42516845,100980.0,100960.0,0.101044]
[1733934718022,0.22710845,100980.0,100960.0,0.002]
[1733934718197,0.62325245,100980.0,100960.0,0.002]
[1733934718436,0.198078,100970.0,100960.0,0.002]
[1733934718860,0.198078,100970.0,100960.0,0.004]
[1733934719254,0.198078,100970.0,100960.0,0.002]
[1733934719453,0.62325245,100980.0,100960.0,0.002]
[1733934719611,0.008,100970.0,100960.0,0.001]
[1733934719788,0.56224344,100980.0,100960.0,0.001]
[1733934719989,0.009,100970.0,100950.0,0.69332]
[1733934720212,0.207079,100970.0,100950.0,0.594269]
[1733934720427,0.198098,100960.0,100950.0,0.49522]
[1733934720839,0.46758183,100960.0,100950.0,0.49522]
[1733934721699,0.46758183,100960.0,100950.0,0.49538481]
[1733934721700,0.51618183,100960.0,100950.0,0.49538481]
[1733934721892,0.34700645,100960.0,100950.0,0.49838481]
[1733934722322,0.81618183,100960.0,100950.0,0.49838481]
[1733934722520,0.81618183,100960.0,100950.0,0.49538481]
[1733934722686,1.02220998,100960.0,100950.0,0.50438481]
[1733934722894,0.94145721,100960.0,100950.0,0.50438481]
[1733934723096,0.0567,100930.0,100910.0,0.01549091]
[1733934723259,0.0567,100930.0,100910.0,0.01565563]
[1733934723260,0.10030845,100920.0,100910.0,0.01565563]
[1733934723465,0.78683521,100920.0,100910.0,0.00016472]
[1733934723676,0.99960586,100920.0,100910.0,0.00016472]
[1733934724075,0.198235,100890.0,100880.0,0.0003]
[1733934724267,0.46771883,100890.0,100880.0,0.0003]
[1733934724467,0.46771883,100890.0,100880.0,0.00046491]
[1733934724675,0.546404,100910.0,100880.0,0.09959191]
[1733934724890,0.10030845,100910.0,100890.0,0.099117]
[1733934725093,0.42442928,100920.0,100890.0,0.099117]
[1733934725292,0.22624028,100920.0,100890.0,0.29853545]
[1733934725502,0.02054028,100920.0,100910.0,0.001]
[1733934725724,0.199176,100920.0,100890.0,0.29853045]
[1733934725940,0.198176,100920.0,100890.0,0.39764145]
[1733934726134,0.198176,100920.0,100890.0,0.29952945]
[1733934726331,0.52086956,100920.0,100880.0,0.34870991]
[1733934726554,0.198217,100900.0,100880.0,0.24958691]
[1733934726769,0.198207,100910.0,100880.0,0.34870891]
[1733934727015,0.396413,100910.0,100880.0,0.34870891]
[1733934727268,0.49672145,100910.0,100880.0,0.24958691]
[1733934727530,0.198217,100900.0,100880.0,0.15046491]
[1733934727830,0.49672145,100910.0,100880.0,0.24959191]
[1733934727831,0.75163045,100910.0,100880.0,0.24959191]
[1733934728056,0.396447,100900.0,100880.0,0.00046491]
[1733934728269,0.198235,100890.0,100880.0,0.00046491]
[1733934728477,0.29854345,100890.0,100880.0,0.00046491]
[1733934729191,0.44854345,100890.0,100880.0,0.00046491]
[1733934729593,0.44954345,100890.0,100880.0,0.00646491]
[1733934729798,0.002,100890.0,100880.0,0.00646491]
[1733934730232,0.10230845,100890.0,100880.0,0.00646491]
[1733934730440,0.30054345,100890.0,100880.0,0.00646491]
[1733934730847,0.60054345,100890.0,100880.0,0.00646491]
[1733934731049,0.84111883,100890.0,100880.0,0.00646491]
[1733934731254,0.89781883,100890.0,100880.0,0.00646491]
[1733934731468,0.72864345,100890.0,100880.0,0.00646491]
[1733934731927,0.74781883,100890.0,100880.0,0.00646491]
[1733934732137,0.76383196,100890.0,100880.0,0.00646491]
[1733934732564,0.86391753,100890.0,100880.0,0.00646491]
[1733934732767,0.396618,100860.0,100830.0,0.1266]
[1733934732973,0.396618,100860.0,100820.0,0.198358]
[1733934732974,0.29862645,100850.0,100820.0,0.198358]
[1733934733209,0.15,100870.0,100830.0,0.223276]
[1733934733414,0.0378159,100890.0,100830.0,0.223276]
[1733934733415,0.01801313,100890.0,100850.0,0.0466]
[1733934733626,0.01801313,100890.0,100870.0,0.099137]
[1733934733857,0.21625913,100890.0,100850.0,0.24605745]
[1733934734068,0.51481758,100890.0,100860.0,0.15]
[1733934734293,0.51481758,100890.0,100850.0,0.0466]
[1733934734294,0.10030845,100880.0,100850.0,0.0466]
[1733934734501,0.29857545,100880.0,100850.0,0.15]
[1733934734734,0.49684145,100880.0,100850.0,0.15]
[1733934735049,0.19828,100870.0,100850.0,0.15]
[1733934735254,0.29857445,100880.0,100850.0,0.15]
[1733934735390,0.49684045,100880.0,100850.0,0.15]
[1733934735589,0.50584045,100880.0,100850.0,0.15]
[1733934735795,0.396582,100870.0,100840.0,0.2293]
[1733934736196,0.46917538,100850.0,100800.0,0.0813672]
[1733934736404,0.198364,100830.0,100800.0,0.10030845]
[1733934736836,0.198356,100830.0,100800.0,0.19951345]
[1733934737046,0.44864645,100840.0,100800.0,0.29871345]
[1733934737256,0.64699245,100840.0,100800.0,0.39790745]
[1733934737468,0.00236764,100840.0,100810.0,0.19949745]
[1733934737673,0.00236764,100840.0,100820.0,0.099181]
[1733934737883,0.00236764,100840.0,100820.0,0.198361]
[1733934738284,0.00236764,100840.0,100820.0,0.09918]
[1733934738478,0.01136764,100840.0,100820.0,0.099186]
[1733934738788,0.00236764,100810.0,100800.0,0.00055026]
[1733934739132,0.00236764,100830.0,100800.0,0.10085871]
[1733934739358,0.00236764,100830.0,100810.0,0.10018188]
[1733934739543,0.00335958,100830.0,100800.0,0.39846071]
[1733934739747,0.00335958,100830.0,100800.0,0.29925971]
[1733934739957,0.00335958,100830.0,100810.0,0.099195]
[1733934740156,0.00335958,100830.0,100810.0,0.198386]
[1733934740360,0.00099194,100830.0,100810.0,0.198382]
[1733934740560,0.00099194,100830.0,100810.0,0.099191]
[1733934740561,0.00335958,100830.0,100810.0,0.099191]
[1733934740768,0.00335958,100830.0,100810.0,0.15]
[1733934741370,0.00236764,100820.0,100810.0,0.15]
[1733934741838,0.00236764,100820.0,100810.0,0.25030845]
[1733934742027,0.012,100830.0,100810.0,0.42460445]
[1733934742236,0.0185041,100840.0,100820.0,0.099186]
[1733934742433,0.0185041,100840.0,100810.0,0.62298445]
[1733934742607,0.005,100820.0,100810.0,0.52378845]
[1733934743378,0.00736764,100820.0,100810.0,0.15]
[1733934743589,0.00736764,100820.0,100800.0,0.00055026]
[1733934743590,0.00236764,100810.0,100800.0,0.00055026]
[1733934743812,0.00335958,100810.0,100800.0,0.00055026]
[1733934744862,0.012,100810.0,100800.0,0.00055026]
[1733934745732,0.012,100810.0,100800.0,0.10074826]
[1733934745733,0.003,100810.0,100800.0,0.10074826]
[1733934745935,0.004,100810.0,100800.0,0.35105671]
[1733934746145,0.004,100810.0,100800.0,0.42756471]
[1733934746354,0.004,100810.0,100800.0,0.35006471]
[1733934746561,0.001,100810.0,100800.0,0.35006471]
[1733934747028,0.002,100810.0,100800.0,0.35606471]
[1733934747238,0.001,100810.0,100800.0,0.35606471]
[1733934747447,0.005,100810.0,100800.0,0.44927071]
[1733934747858,0.009,100810.0,100800.0,0.45027071]
[1733934748070,0.018,100810.0,100800.0,0.45027071]
[1733934750170,0.02000387,100840.0,100800.0,0.35106471]
[1733934750175,0.822877,100850.0,100820.0,0.099186]
[1733934750440,0.822877,100850.0,100810.0,0.48009545]
[1733934750441,0.198334,100840.0,100810.0,0.48009545]
[1733934750690,0.198334,100840.0,100810.0,0.57928645]
[1733934750691,0.396676,100840.0,100810.0,0.57928645]
[1733934750942,0.396676,100840.0,100810.0,0.249187]
[1733934750943,0.49698445,100840.0,100810.0,0.249187]
[1733934751207,0.49698445,100840.0,100810.0,0.348383]
[1733934751501,0.198354,100830.0,100820.0,0.003]
[1733934751726,0.70433345,100840.0,100820.0,0.003]
[1733934751936,0.50598645,100840.0,100820.0,0.003]
[1733934752159,0.207334,100840.0,100820.0,0.003]
[1733934752363,0.207334,100840.0,100820.0,0.10317786]
[1733934752364,0.009,100840.0,100820.0,0.10317786]
[1733934752566,0.009,100840.0,100820.0,0.198368]
[1733934752777,0.198353,100830.0,100810.0,0.324388]
[1733934752984,0.211343,100840.0,100810.0,0.52388645]
[1733934753193,0.211343,100840.0,100810.0,0.78570635]
[1733934753194,0.202343,100840.0,100810.0,0.78570635]
[1733934753393,0.198343,100840.0,100820.0,0.099186]
[1733934753603,0.001,100830.0,100820.0,0.009]
[1733934753807,0.199353,100830.0,100820.0,0.016]
[1733934754027,0.29866145,100830.0,100820.0,0.007]
[1733934754432,0.29866145,100830.0,100810.0,0.001]
[1733934754642,0.49702345,100830.0,100800.0,0.29815026]
[1733934754844,0.69539245,100830.0,100800.0,0.09974926]
[1733934755050,0.49802345,100830.0,100820.0,0.009]
[1733934755251,0.69639445,100830.0,100800.0,0.34895126]
[1733934755483,0.69638845,100830.0,100800.0,0.44815026]
[1733934755701,0.69638845,100830.0,100800.0,0.34894826]
[1733934755911,0.49902345,100830.0,100820.0,0.008]
[1733934756122,0.30066145,100830.0,100820.0,0.008]
[1733934756342,0.29966145,100830.0,100810.0,0.249196]
[1733934756545,0.405716,100830.0,100810.0,0.2337]
[1733934756748,0.405716,100830.0,100810.0,0.5937159]
[1733934756749,0.206353,100830.0,100810.0,0.5937159]
[1733934756964,0.206353,100830.0,100810.0,0.6929119]
[1733934757158,0.009,100830.0,100820.0,0.008]
[1733934757365,0.198353,100830.0,100810.0,0.331896]
[1733934757581,0.200353,100830.0,100810.0,0.331896]
[1733934757791,0.01,100830.0,100810.0,0.432087]
[1733934758178,0.02455885,100830.0,100810.0,0.2326]
[1733934758355,0.02455885,100830.0,100810.0,0.53128945]
[1733934758606,0.01,100830.0,100810.0,0.63048145]
[1733934758810,0.01,100830.0,100820.0,0.007]
[1733934758981,0.207353,100830.0,100820.0,0.007]
[1733934759393,0.208353,100830.0,100820.0,0.015]
[1733934760001,0.200353,100830.0,100820.0,0.015]
[1733934760199,0.199353,100830.0,100820.0,0.008]
[1733934760427,0.30766145,100830.0,100820.0,0.008]
[1733934761022,0.32333521,100830.0,100820.0,0.016]
[1733934761184,0.31533521,100830.0,100820.0,0.008]
[1733934761578,0.31533521,100830.0,100820.0,0.015]
[1733934761579,0.31633521,100830.0,100820.0,0.015]
[1733934762075,0.46533521,100830.0,100820.0,0.007]
[1733934762282,0.54813521,100830.0,100820.0,0.007]
[1733934762491,0.99109975,100830.0,100820.0,0.007]
[1733934762691,0.99209975,100830.0,100820.0,0.013]
[1733934762904,0.72213521,100830.0,100820.0,0.013]
[1733934763108,0.39913521,100830.0,100820.0,0.013]
[1733934763342,0.54813521,100830.0,100820.0,0.007]
[1733934763719,0.54813521,100830.0,100820.0,0.013]
[1733934763720,0.54913521,100830.0,100820.0,0.013]
[1733934765553,0.56881482,100830.0,100820.0,0.013]
[1733934765753,0.33601482,100830.0,100820.0,0.013]
[1733934766336,0.21602676,100830.0,100820.0,0.013]
[1733934766507,0.21602676,100830.0,100820.0,0.012024]
[1733934766957,0.01767376,100830.0,100820.0,0.012024]
[1733934768161,0.01767376,100830.0,100820.0,0.43108897]
[1733934768365,0.003,100830.0,100820.0,0.65669742]
[1733934769330,0.002,100830.0,100820.0,0.65069742]
[1733934769532,0.01483035,100850.0,100830.0,0.348344]
[1733934769768,0.01483035,100850.0,100830.0,0.44865245]
[1733934769973,0.00708509,100840.0,100830.0,0.34947845]
[1733934770183,0.396601,100860.0,100830.0,0.24917]
[1733934770419,0.51538363,100850.0,100830.0,0.15]
[1733934770628,0.00708507,100840.0,100830.0,0.15]
[1733934770839,0.60967137,100860.0,100830.0,0.34947945]
[1733934771080,0.01933232,100850.0,100830.0,0.52035842]
[1733934771294,0.008,100850.0,100830.0,0.35047945]
[1733934771492,0.404644,100850.0,100830.0,0.151]
[1733934771789,0.60297,100850.0,100830.0,0.151]
[1733934771925,0.404643,100850.0,100830.0,0.151]
[1733934772125,0.60297,100850.0,100830.0,0.151]
[1733934772330,0.011,100850.0,100830.0,0.61952542]
[1733934772537,0.003,100850.0,100830.0,0.61852542]
[1733934772857,0.003,100850.0,100830.0,0.52035442]
[1733934773060,0.003,100850.0,100830.0,0.34947545]
[1733934773268,0.201316,100850.0,100830.0,0.34947545]
[1733934773470,0.201316,100850.0,100830.0,0.35047545]
[1733934773471,0.210316,100850.0,100830.0,0.35047545]
[1733934773859,0.408646,100850.0,100830.0,0.001]
[1733934774356,0.29864145,100840.0,100830.0,0.001]
[1733934774614,0.198333,100840.0,100830.0,0.001]
[1733934774827,0.491446,100850.0,100830.0,0.001]
[1733934775031,0.198333,100840.0,100830.0,0.001]
[1733934775179,0.29864145,100840.0,100830.0,0.001]
[1733934775728,0.199333,100840.0,100820.0,0.195]
[1733934775930,0.199333,100840.0,100820.0,0.294186]
[1733934776277,0.001,100840.0,100820.0,0.294186]
[1733934776483,0.001,100840.0,100830.0,0.008]
[1733934776885,0.008,100840.0,100830.0,0.008]
[1733934777314,0.008,100840.0,100830.0,0.182476]
[1733934777723,0.02257822,100840.0,100830.0,0.182476]
[1733934777944,0.02157822,100840.0,100830.0,0.174476]
[1733934778154,0.02157822,100840.0,100830.0,0.0753]
[1733934778323,0.02357822,100840.0,100830.0,0.0753]
[1733934778528,0.01657822,100840.0,100830.0,0.174476]
[1733934778875,0.01557822,100840.0,100830.0,0.174476]
[1733934779196,0.01557822,100840.0,100830.0,0.182476]
[1733934779197,0.01657822,100840.0,100830.0,0.182476]
[1733934779413,0.002,100840.0,100830.0,0.28278445]
[1733934779728,0.198296,100860.0,100830.0,0.38195545]
[1733934779930,0.3966,100860.0,100830.0,0.38195545]
[1733934780329,0.396647,100850.0,100830.0,0.0833]
[1733934780539,0.396647,100850.0,100830.0,0.008]
[1733934780762,0.44861245,100860.0,100820.0,0.55568627]
[1733934780972,0.396636,100850.0,100830.0,0.004]
[1733934781179,0.198333,100840.0,100830.0,0.004]
[1733934781389,0.198333,100840.0,100820.0,0.48786567]
[1733934781598,0.198333,100840.0,100820.0,0.35732627]
[1733934781802,0.397636,100850.0,100830.0,0.006]
[1733934782033,0.199314,100850.0,100830.0,0.00699171]
[1733934782242,0.198314,100850.0,100820.0,0.55568927]
[1733934782449,0.198314,100850.0,100820.0,0.78653712]
[1733934782450,0.001,100840.0,100820.0,0.78653712]
[1733934782665,4.67279996,100830.0,100820.0,0.78653612]
[1733934784535,4.67279996,100830.0,100820.0,0.68735512]
[1733934784748,4.67279996,100830.0,100820.0,0.41256567]
[1733934784749,4.60379995,100830.0,100820.0,0.41256567]
[1733934784962,4.80215295,100830.0,100820.0,0.23702627]
[1733934785369,4.80515295,100830.0,100820.0,0.15]
[1733934786219,5.15055977,100830.0,100820.0,0.15]
[1733934786441,5.47555977,100830.0,100820.0,0.158]
[1733934786648,5.4327614,100830.0,100820.0,0.158]
[1733934787469,5.62555977,100830.0,100820.0,0.158]
[1733934787678,5.62455977,100830.0,100820.0,0.158]
[1733934787880,5.63926118,100830.0,100820.0,0.158]
[1733934788095,5.63926118,100830.0,100820.0,0.15]
[1733934788309,5.63926118,100830.0,100820.0,0.157]
[1733934788511,5.64026118,100830.0,100820.0,0.157]
[1733934788923,5.63926118,100830.0,100820.0,0.15]
[1733934789129,5.63926118,100830.0,100820.0,0.155]
[1733934789559,5.14646281,100830.0,100820.0,0.155]
[1733934789980,5.29646281,100830.0,100820.0,0.155]
[1733934791004,5.06816281,100830.0,100820.0,0.155]
[1733934791208,5.21816281,100830.0,100820.0,0.155]
[1733934791420,5.63826118,100830.0,100820.0,0.155]
[1733934792032,5.46846281,100830.0,100820.0,0.155]
[1733934792237,5.46846281,100830.0,100820.0,0.005]
[1733934792892,5.56854838,100830.0,100820.0,0.005]
[1733934793111,5.75773223,100830.0,100820.0,0.005]
[1733934793320,5.65764666,100830.0,100820.0,0.005]
[1733934794156,5.50764666,100830.0,100820.0,0.005]
[1733934794375,5.35764666,100830.0,100820.0,0.00092625]
[1733934794578,5.50764666,100830.0,100820.0,0.00092625]
[1733934794788,5.36978137,100830.0,100820.0,0.00092625]
[1733934795210,0.198393,100810.0,100800.0,0.00055026]
[1733934795416,0.29870145,100810.0,100800.0,0.00055026]
[1733934796492,0.59870145,100810.0,100800.0,0.00055026]
[1733934796671,0.77170145,100810.0,100800.0,0.00055026]
[1733934796870,1.01789982,100810.0,100800.0,0.00055026]
[1733934797255,0.86889982,100810.0,100800.0,0.00655026]
[1733934797456,1.01889982,100810.0,100800.0,0.00655026]
[1733934797664,1.01889982,100810.0,100800.0,0.00055026]
[1733934797665,0.86889982,100810.0,100800.0,0.00055026]
[1733934798082,0.86789982,100810.0,100800.0,0.00355026]
[1733934798293,0.76759982,100810.0,100800.0,0.003]
[1733934798501,0.76759982,100810.0,100770.0,0.0003]
[1733934798502,0.3,100800.0,100770.0,0.0003]
[1733934798717,0.49719745,100790.0,100770.0,0.00046507]
[1733934798916,0.49719245,100790.0,100770.0,0.00046507]
[1733934799126,0.198452,100780.0,100770.0,0.00046507]
[1733934800832,0.199452,100780.0,100770.0,0.00846507]
[1733934801037,0.001,100780.0,100770.0,0.00846507]
[1733934801678,0.002,100780.0,100770.0,0.11762407]
[1733934801889,0.002,100780.0,100770.0,0.19692407]
[1733934803382,0.002,100780.0,100770.0,0.08776507]
[1733934804221,0.01581807,100780.0,100770.0,0.08776507]
[1733934804421,0.002,100780.0,100770.0,0.19692407]
[1733934804630,0.002,100780.0,100770.0,0.19791627]
[1733934804836,0.13241399,100800.0,100770.0,0.19791627]
[1733934805039,0.71677921,100810.0,100770.0,0.19791627]
[1733934805248,0.66708766,100810.0,100780.0,0.0009922]
[1733934805457,0.51708366,100810.0,100790.0,0.0799]
[1733934805659,0.51708266,100810.0,100790.0,0.0799]
[1733934806276,0.72914088,100810.0,100790.0,0.0799]
[1733934806481,0.198412,100800.0,100790.0,0.0799]
[1733934807105,0.72914188,100810.0,100790.0,0.0839]
[1733934807307,0.198412,100800.0,100790.0,0.0839]
[1733934807509,0.198412,100800.0,100790.0,0.0799]
[1733934807935,0.198432,100790.0,100770.0,0.07626507]
[1733934808145,0.396875,100790.0,100770.0,0.07626507]
[1733934808361,0.198452,100780.0,100770.0,0.07626507]
[1733934808565,0.198452,100780.0,100770.0,0.00046507]
[1733934809394,0.198452,100780.0,100770.0,0.00546507]
[1733934809633,0.29976045,100780.0,100770.0,0.01446507]
[1733934809838,0.29976045,100780.0,100770.0,0.00946507]
[1733934810045,0.001,100780.0,100770.0,0.00946507]
[1733934810254,0.001,100780.0,100770.0,0.01446507]
[1733934810463,0.199452,100780.0,100770.0,0.01446507]
[1733934810670,0.199452,100780.0,100770.0,0.00546507]
[1733934810885,0.198452,100780.0,100770.0,0.00546507]
[1733934811097,0.199452,100780.0,100770.0,0.01346507]
[1733934811516,0.29976045,100780.0,100770.0,0.01346507]
[1733934811720,0.199452,100780.0,100770.0,0.01346507]
[1733934811927,0.001,100780.0,100770.0,0.01346507]
[1733934812148,0.199452,100780.0,100770.0,0.01346507]
[1733934812357,0.001,100780.0,100770.0,0.01346507]
[1733934812795,0.199452,100780.0,100770.0,0.01346507]
[1733934815480,0.29976045,100780.0,100770.0,0.01346507]
[1733934816753,0.44976045,100780.0,100770.0,0.01346507]
[1733934818460,0.91955882,100780.0,100770.0,0.01346507]
[1733934819311,0.88176728,100780.0,100770.0,0.01346507]
[1733934819519,0.88176728,100780.0,100760.0,0.0153603]
[1733934819520,0.498471,100770.0,100760.0,0.0153603]
[1733934819750,0.91857782,100770.0,100760.0,0.0159111]
[1733934819953,0.76857782,100770.0,100760.0,0.0159111]
[1733934820378,0.61857782,100770.0,100760.0,0.0159111]
[1733934820584,0.648491,100760.0,100750.0,5e-05]
[1733934820794,0.76093767,100760.0,100750.0,5e-05]
[1733934821870,1.01003604,100760.0,100750.0,5e-05]
[1733934822082,1.01003604,100760.0,100750.0,0.00305]
[1733934822261,0.84023767,100760.0,100750.0,0.00305]
[1733934822760,0.84023767,100760.0,100750.0,0.00505]
[1733934823413,0.61093767,100760.0,100750.0,0.00505]
[1733934823826,0.46093767,100760.0,100750.0,0.00505]
[1733934824048,0.61093767,100760.0,100750.0,0.00505]
[1733934824693,0.71102324,100760.0,100750.0,0.00505]
[1733934824899,0.61093767,100760.0,100750.0,0.00505]
[1733934825313,0.93073604,100760.0,100750.0,0.00505]
[1733934825497,0.78073604,100760.0,100750.0,0.00505]
[1733934826601,0.76859782,100760.0,100750.0,0.00505]
[1733934826807,0.61250285,100760.0,100750.0,0.00505]
[1733934827014,0.02607299,100760.0,100750.0,0.00505]
[1733934827243,0.0137034,100760.0,100750.0,0.12745]
[1733934827455,0.198491,100760.0,100750.0,0.12745]
[1733934828174,0.198491,100760.0,100750.0,0.00505]
[1733934828603,0.2108405,100760.0,100750.0,0.00505]
[1733934831159,0.21083846,100760.0,100750.0,0.00505]
[1733934833028,0.21083846,100760.0,100750.0,0.08405]
[1733934834071,0.198491,100760.0,100750.0,0.08405]
[1733934834279,0.42923486,100770.0,100750.0,0.08405]
[1733934834493,0.01926663,100760.0,100750.0,0.08405]
[1733934834694,0.52954331,100770.0,100750.0,0.08405]
[1733934834902,0.01926665,100760.0,100750.0,0.08405]
[1733934835111,0.52954331,100770.0,100750.0,0.08405]
[1733934835324,0.52954331,100770.0,100750.0,0.07905]
[1733934835325,0.21775968,100760.0,100750.0,0.07905]
[1733934835539,0.198491,100760.0,100750.0,0.07905]
[1733934835750,0.73003031,100770.0,100750.0,0.07905]
[1733934835952,0.01927033,100760.0,100750.0,0.07905]
[1733934836162,0.198491,100760.0,100750.0,0.07905]
[1733934837201,0.198491,100760.0,100750.0,0.08105]
[1733934837383,0.198491,100760.0,100750.0,0.08305]
[1733934838698,0.73003031,100770.0,100750.0,0.08305]
[1733934838922,0.01187295,100760.0,100750.0,0.13075]
[1733934839133,0.03427886,100770.0,100750.0,0.230005]
[1733934839352,0.01929692,100760.0,100750.0,0.13075]
[1733934839567,0.23275086,100770.0,100750.0,0.13075]
[1733934839779,0.00742189,100760.0,100750.0,0.12875]
[1733934839989,0.62972286,100770.0,100750.0,0.12875]
[1733934840207,0.198491,100760.0,100750.0,0.12875]
[1733934840440,0.23708705,100760.0,100750.0,0.12875]
[1733934840655,0.21778782,100760.0,100750.0,0.12875]
[1733934840874,0.198491,100760.0,100750.0,0.12875]
[1733934841319,0.21086222,100760.0,100750.0,0.12875]
[1733934841533,0.62974437,100770.0,100750.0,0.12875]
[1733934841753,0.00742435,100760.0,100750.0,0.12875]
[1733934841955,0.03430137,100770.0,100750.0,0.230005]
[1733934842165,0.00742441,100760.0,100750.0,0.230005]
[1733934842406,0.00742441,100760.0,100750.0,0.13075]
[1733934842615,0.41888215,100770.0,100750.0,0.13075]
[1733934842819,0.41888215,100770.0,100750.0,0.12875]
[1733934843055,0.02193015,100770.0,100760.0,0.0804]
[1733934843265,0.00254765,100770.0,100760.0,0.179645]
[1733934843477,0.00254765,100770.0,100760.0,0.32505345]
[1733934843903,0.00054765,100770.0,100760.0,0.32505345]
[1733934844120,0.00254765,100770.0,100760.0,0.32505345]
[1733934844327,0.00054765,100770.0,100760.0,0.22580845]
[1733934844532,0.00054765,100770.0,100760.0,0.49805345]
[1733934844755,0.01237701,100790.0,100780.0,0.099226]
[1733934844974,0.16405498,100800.0,100790.0,0.099216]
[1733934845180,0.41626554,100810.0,100790.0,0.0795]
[1733934845397,0.2058368,100800.0,100790.0,0.0795]
[1733934845642,0.21785954,100810.0,100790.0,0.0795]
[1733934845850,0.396764,100820.0,100800.0,0.1288]
[1733934846323,0.01188168,100810.0,100800.0,0.32831445]
[1733934846531,4.80216295,100830.0,100800.0,0.32831445]
[1733934846532,5.00053095,100830.0,100800.0,0.52671345]
[1733934846752,0.0118713,100820.0,100810.0,0.20049634]
[1733934846982,4.60379995,100830.0,100820.0,0.099186]
[1733934847198,4.60379995,100830.0,100820.0,0.19949445]
[1733934847199,4.60396426,100830.0,100820.0,0.19949445]
[1733934847414,4.55396426,100830.0,100820.0,0.64899445]
[1733934847594,4.55396426,100830.0,100820.0,0.49899445]
[1733934847838,4.55396426,100830.0,100820.0,0.64899445]
[1733934848253,4.55396426,100830.0,100820.0,0.65099445]
[1733934848703,4.55396426,100830.0,100820.0,0.50099445]
[1733934849343,4.55396426,100830.0,100820.0,0.22880845]
[1733934849768,4.55396426,100830.0,100820.0,0.32599445]
[1733934849979,4.48596425,100830.0,100820.0,0.1335]
[1733934850226,4.48596425,100830.0,100820.0,0.011]
[1733934850227,4.68431725,100830.0,100820.0,0.011]
[1733934850429,4.68431725,100830.0,100820.0,0.007]
[1733934850858,0.198373,100820.0,100810.0,0.0792]
[1733934851289,4.88168625,100830.0,100820.0,0.004]
[1733934851503,4.88168625,100830.0,100820.0,0.008]
[1733934851718,4.88168625,100830.0,100820.0,0.004]
[1733934851927,5.03168625,100830.0,100820.0,0.004]
[1733934852765,4.88168625,100830.0,100810.0,0.10418687]
[1733934852972,4.88168625,100830.0,100810.0,0.004]
[1733934852973,5.08005625,100830.0,100810.0,0.004]
[1733934853324,5.08005625,100830.0,100810.0,0.009]
[1733934853881,5.08005625,100830.0,100800.0,0.3198]
[1733934854165,4.88169625,100830.0,100800.0,0.22170845]
[1733934854424,4.88169625,100830.0,100810.0,0.005]
[1733934854425,5.08306225,100830.0,100810.0,0.005]
[1733934854635,4.88169225,100830.0,100810.0,0.005]
[1733934854875,0.198373,100820.0,100810.0,0.01]
[1733934855303,0.198373,100820.0,100810.0,0.005]
[1733934855939,0.396756,100820.0,100800.0,0.22170845]
[1733934856155,0.198393,100810.0,100800.0,0.0766]
[1733934856381,0.198393,100810.0,100800.0,0.001]
[1733934856586,0.198393,100810.0,100790.0,0.075]
[1733934856836,0.198373,100820.0,100790.0,0.27452345]
[1733934857122,0.397759,100820.0,100810.0,0.014]
[1733934857369,0.396759,100820.0,100810.0,0.005]
[1733934857594,0.396802,100810.0,100800.0,0.005]
[1733934857818,0.81707551,100810.0,100790.0,0.005]
[1733934858058,0.44872045,100800.0,100790.0,0.005]
[1733934858288,0.44872045,100800.0,100790.0,0.006]
[1733934859123,0.44872045,100800.0,100790.0,0.001]
[1733934860151,0.44872045,100800.0,100790.0,0.003]
[1733934860354,0.15,100800.0,100790.0,0.002]
[1733934860562,0.396802,100810.0,100780.0,0.10021319]
[1733934860766,0.396836,100800.0,100770.0,0.18312319]
[1733934860943,0.396836,100800.0,100790.0,0.006]
[1733934861368,0.396836,100800.0,100790.0,0.005]
[1733934861605,0.396836,100800.0,100790.0,0.009]
[1733934862235,0.396836,100800.0,100790.0,0.004]
[1733934863071,0.198402,100810.0,100790.0,0.0793]
[1733934863285,0.15,100810.0,100790.0,0.183515]
[1733934863490,0.348394,100810.0,100790.0,0.183515]
[1733934863699,0.546798,100810.0,100790.0,0.0843]
[1733934864120,0.546798,100810.0,100790.0,0.0793]
[1733934864332,0.745202,100810.0,100790.0,0.0753]
[1733934864745,0.546798,100810.0,100790.0,0.0763]
[1733934864951,0.198412,100800.0,100790.0,0.0763]
[1733934865362,0.745204,100810.0,100790.0,0.0783]
[1733934865576,0.546797,100810.0,100790.0,0.0783]
[1733934865987,0.20574274,100800.0,100790.0,0.0763]
[1733934866193,0.198412,100800.0,100790.0,0.0813]
[1733934866778,0.745205,100810.0,100790.0,0.0763]
[1733934866979,0.00733321,100800.0,100790.0,0.0753]